bitfinex/quotes_BTCUSD_20240727
["timestamp","ask_amount","ask_price","bid_price","bid_amount"]
[1722090268500,0.00284,69181.0,69178.0,0.009]
[1722090268907,0.0015542,69180.0,69179.0,0.00965433]
[1722090269870,0.0015542,69180.0,69176.0,0.00904417]
[1722090270066,0.0015542,69180.0,69177.0,0.00965785]
[1722090270425,0.0226896,69180.0,69177.0,0.00965785]
[1722090270829,0.00166602,69181.0,69176.0,0.001]
[1722090270974,0.00166602,69181.0,69178.0,0.00965609]
[1722090270975,0.0015542,69180.0,69178.0,0.00965609]
[1722090271305,0.0025542,69180.0,69179.0,0.00965433]
[1722090271486,0.001,69180.0,69179.0,0.00965433]
[1722090271698,0.001,69180.0,69178.0,0.008]
[1722090271922,0.00166602,69181.0,69180.0,0.43365]
[1722090271923,0.00066602,69181.0,69180.0,0.43365]
[1722090272102,0.00066602,69181.0,69180.0,0.72275]
[1722090272331,0.00066602,69181.0,69180.0,0.73239606]
[1722090272533,0.00066602,69181.0,69180.0,0.00964606]
[1722090272732,0.14521402,69181.0,69180.0,0.00964606]
[1722090272965,0.14521502,69181.0,69178.0,0.001]
[1722090273094,0.00122611,69180.0,69178.0,0.001]
[1722090273295,0.00066602,69181.0,69178.0,0.001]
[1722090273714,0.00066602,69181.0,69173.0,0.00932923]
[1722090273911,0.289105,69179.0,69178.0,0.007]
[1722090274157,0.435657,69179.0,69178.0,0.007]
[1722090274552,0.002,69177.0,69171.0,0.00032809]
[1722090274754,0.146558,69177.0,69171.0,0.00032809]
[1722090275585,0.002,69178.0,69171.0,0.00032809]
[1722090275791,0.145557,69177.0,69171.0,0.00932809]
[1722090276163,0.001,69177.0,69171.0,0.15389709]
[1722090276399,0.001,69177.0,69171.0,0.00932809]
[1722090276540,0.001,69177.0,69171.0,0.16489609]
[1722090276742,0.001,69177.0,69171.0,0.02]
[1722090276743,0.145557,69177.0,69171.0,0.02]
[1722090276957,0.144557,69177.0,69171.0,0.011]
[1722090277165,0.289113,69177.0,69171.0,0.018]
[1722090277366,0.14456,69176.0,69171.0,0.018]
[1722090277616,0.144557,69177.0,69171.0,0.018]
[1722090277820,0.144557,69177.0,69171.0,0.011]
[1722090278126,0.146559,69176.0,69171.0,0.018]
[1722090278329,0.001,69177.0,69171.0,0.018]
[1722090278330,0.002,69174.0,69171.0,0.018]
[1722090278515,0.146563,69174.0,69171.0,0.018]
[1722090278834,0.144565,69173.0,69171.0,0.018]
[1722090279133,0.144565,69173.0,69171.0,0.02030712]
[1722090279274,0.433701,69172.0,69171.0,0.00930712]
[1722090279482,0.144573,69170.0,69161.0,0.00032809]
[1722090279694,0.353534,69172.0,69161.0,0.00032809]
[1722090279695,0.144576,69168.0,69162.0,0.12984296]
[1722090279892,0.289138,69171.0,69162.0,0.12984296]
[1722090279893,0.291138,69171.0,69163.0,0.12015944]
[1722090280099,0.144573,69169.0,69163.0,0.00968176]
[1722090280297,0.144576,69168.0,69164.0,0.00032809]
[1722090280499,0.144576,69168.0,69164.0,0.01000809]
[1722090280740,0.144577,69167.0,69164.0,0.01000809]
[1722090280943,0.144573,69169.0,69164.0,0.01000809]
[1722090281160,0.144573,69169.0,69164.0,0.00968]
[1722090281374,0.144575,69168.0,69163.0,0.002]
[1722090281583,0.289148,69169.0,69165.0,0.00967824]
[1722090281760,0.144577,69167.0,69160.0,0.144592]
[1722090282117,0.146577,69167.0,69166.0,0.00967648]
[1722090282252,0.002,69167.0,69165.0,0.00032809]
[1722090282452,0.144579,69166.0,69164.0,0.015]
[1722090282668,0.291157,69167.0,69164.0,0.015]
[1722090282669,0.144581,69165.0,69164.0,0.015]
[1722090283052,0.144581,69165.0,69164.0,0.007]
[1722090283274,0.292157,69167.0,69164.0,0.007]
[1722090283275,0.14458,69166.0,69164.0,0.007]
[1722090283479,0.144582,69165.0,69163.0,0.007]
[1722090284232,0.001,69168.0,69166.0,0.289159]
[1722090284358,0.001,69168.0,69167.0,0.57688508]
[1722090284565,0.0644,69183.0,69167.0,0.14315308]
[1722090284760,0.0644,69183.0,69169.0,0.289145]
[1722090284985,0.14521402,69181.0,69172.0,0.144566]
[1722090285189,0.14521402,69181.0,69173.0,0.26471808]
[1722090285397,0.14455,69180.0,69174.0,0.12015308]
[1722090285565,0.14521502,69181.0,69175.0,0.12015308]
[1722090285918,0.02268998,69179.0,69170.0,0.28914]
[1722090286228,0.02268998,69179.0,69173.0,0.144565]
[1722090286430,0.02268998,69179.0,69174.0,0.12014608]
[1722090286653,0.289109,69178.0,69169.0,0.00032809]
[1722090286786,0.144561,69175.0,69170.0,0.1201511]
[1722090287041,0.144561,69175.0,69169.0,0.00032809]
[1722090287042,0.144563,69174.0,69171.0,0.1201511]
[1722090287200,0.00066602,69181.0,69172.0,0.1201511]
[1722090287384,0.144557,69177.0,69173.0,0.12147919]
[1722090287588,0.00066602,69181.0,69174.0,0.1201511]
[1722090287589,0.289111,69178.0,69174.0,0.1201511]
[1722090287803,0.289111,69178.0,69169.0,0.144572]
[1722090287804,0.144559,69176.0,69169.0,0.144572]
[1722090288017,0.144559,69176.0,69170.0,0.12015015]
[1722090288208,0.144559,69176.0,69175.0,0.001]
[1722090288413,0.289944,69180.0,69169.0,0.293144]
[1722090288650,0.144558,69177.0,69170.0,0.1201531]
[1722090288853,0.144555,69178.0,69173.0,0.006]
[1722090289076,0.001,69176.0,69171.0,0.289138]
[1722090289254,0.001,69176.0,69169.0,0.006]
[1722090289255,0.00122611,69175.0,69172.0,0.12015089]
[1722090289467,0.00122611,69175.0,69174.0,0.433687]
[1722090289624,0.00122611,69175.0,69174.0,0.86596289]
[1722090289832,0.001,69176.0,69175.0,0.14488809]
[1722090290029,0.001,69176.0,69175.0,0.86628098]
[1722090290357,0.001,69176.0,69175.0,0.86594453]
[1722090290705,0.02368994,69176.0,69175.0,0.86594453]
[1722090291197,0.16238994,69176.0,69175.0,0.12014253]
[1722090291692,0.1397,69176.0,69175.0,0.12014253]
[1722090291987,0.1397,69176.0,69175.0,0.007]
[1722090293640,0.573375,69176.0,69175.0,0.007]
[1722090293841,0.284258,69176.0,69175.0,0.012]
[1722090294153,0.573375,69176.0,69175.0,0.012]
[1722090294770,0.575375,69176.0,69175.0,0.012]
[1722090294967,0.5960656,69176.0,69175.0,0.012]
[1722090295370,0.284258,69176.0,69175.0,0.012]
[1722090296231,0.573375,69176.0,69175.0,0.012]
[1722090296440,0.284258,69176.0,69175.0,0.012]
[1722090297070,0.1397,69176.0,69175.0,0.13214856]
[1722090297271,0.284258,69176.0,69175.0,0.13214856]
[1722090297479,0.1397,69176.0,69175.0,0.14173584]
[1722090298049,0.00084,69180.0,69175.0,0.14173584]
[1722090298272,0.00084,69180.0,69179.0,0.934062]
[1722090298472,0.1397,69200.0,69199.0,0.289021]
[1722090298669,0.002,69209.0,69199.0,0.289021]
[1722090298670,0.1397,69208.0,69199.0,0.289021]
[1722090298888,0.1397,69208.0,69199.0,0.00657446]
[1722090299311,0.1397,69208.0,69190.0,0.2524]
[1722090299617,0.002,69209.0,69200.0,0.00657328]
[1722090299810,0.002,69209.0,69200.0,0.289016]
[1722090300048,0.002,69209.0,69196.0,0.289032]
[1722090300269,0.002,69209.0,69201.0,0.00657211]
[1722090300465,0.220331,69189.0,69188.0,0.03972115]
[1722090300668,0.220331,69189.0,69179.0,0.1078755]
[1722090300669,0.433657,69179.0,69178.0,0.0431502]
[1722090300884,0.433657,69179.0,69174.0,0.09548062]
[1722090300885,0.144553,69179.0,69175.0,0.00032809]
[1722090301094,0.0639,69185.0,69175.0,0.00032809]
[1722090301309,0.433675,69176.0,69175.0,0.00032809]
[1722090301512,0.509475,69176.0,69175.0,0.00032809]
[1722090301654,0.511475,69176.0,69175.0,0.00032809]
[1722090301856,0.800592,69176.0,69175.0,0.00032809]
[1722090302065,0.800592,69176.0,69166.0,0.00911543]
[1722090302066,0.09848989,69176.0,69166.0,0.00911543]
[1722090302317,0.144569,69171.0,69168.0,0.00032809]
[1722090302483,0.144569,69171.0,69161.0,0.289179]
[1722090302484,0.144569,69171.0,69162.0,0.14491509]
[1722090302669,0.144569,69171.0,69163.0,0.12016113]
[1722090302880,0.289127,69174.0,69164.0,0.14491109]
[1722090303072,0.0758,69176.0,69168.0,0.144573]
[1722090303271,0.0758,69176.0,69171.0,0.00032809]
[1722090303471,0.0758,69176.0,69169.0,0.00032809]
[1722090303669,0.0758,69176.0,69169.0,0.144572]
[1722090303894,0.0758,69176.0,69170.0,0.14457]
[1722090304059,0.220359,69176.0,69168.0,0.148574]
[1722090304264,0.0788,69176.0,69170.0,0.144569]
[1722090304686,0.0758,69176.0,69170.0,0.144569]
[1722090304919,0.0758,69176.0,69171.0,0.144569]
[1722090305133,0.0758,69176.0,69170.0,0.001]
[1722090305298,0.0758,69176.0,69172.0,0.144566]
[1722090305699,0.0758,69176.0,69171.0,0.144569]
[1722090305955,0.09848961,69176.0,69172.0,0.00032809]
[1722090306154,0.09848961,69176.0,69171.0,0.144569]
[1722090306310,0.09848961,69176.0,69172.0,0.0066]
[1722090306311,0.02268961,69176.0,69172.0,0.0066]
[1722090306511,0.02268961,69176.0,69173.0,0.144564]
[1722090306714,0.02268961,69176.0,69172.0,0.009]
[1722090308175,0.02268961,69176.0,69170.0,0.15586785]
[1722090308340,0.02268961,69176.0,69172.0,0.004]
[1722090308533,0.02268961,69176.0,69172.0,0.006]
[1722090308534,0.02368961,69176.0,69172.0,0.006]
[1722090308953,0.02368961,69176.0,69172.0,0.144566]
[1722090309284,0.02268961,69176.0,69172.0,0.009]
[1722090309477,0.02368961,69176.0,69172.0,0.009]
[1722090309677,0.0666,69175.0,69172.0,0.009]
[1722090309914,0.211161,69175.0,69172.0,0.009]
[1722090310093,0.0666,69175.0,69172.0,0.009]
[1722090310791,0.00122611,69174.0,69172.0,0.009]
[1722090311137,0.00122611,69174.0,69172.0,0.007]
[1722090311543,0.0666,69175.0,69172.0,0.017]
[1722090311743,0.0666,69175.0,69172.0,0.01]
[1722090312000,0.001,69174.0,69172.0,0.009]
[1722090312222,0.00122611,69173.0,69172.0,0.009]
[1722090312421,0.0666,69175.0,69172.0,0.009]
[1722090312422,0.18603725,69175.0,69172.0,0.009]
[1722090312578,0.18603725,69175.0,69169.0,0.144572]
[1722090312922,0.001,69174.0,69172.0,0.019]
[1722090313069,0.144565,69173.0,69172.0,0.019]
[1722090313264,0.435695,69173.0,69172.0,0.008]
[1722090314065,0.724825,69173.0,69172.0,0.008]
[1722090314283,0.002,69169.0,69166.0,0.00912558]
[1722090314487,0.002,69169.0,69164.0,0.1]
[1722090314488,0.144575,69169.0,69164.0,0.1]
[1722090314746,0.144575,69169.0,69162.0,0.244587]
[1722090314880,0.144575,69169.0,69163.0,0.12015959]
[1722090315089,0.144575,69169.0,69164.0,0.22015959]
[1722090315419,0.146575,69169.0,69162.0,0.25395972]
[1722090315624,0.146575,69169.0,69166.0,0.014]
[1722090315805,0.16726657,69168.0,69164.0,0.1]
[1722090316024,0.16726657,69168.0,69163.0,0.014]
[1722090316025,0.002,69167.0,69163.0,0.014]
[1722090316225,0.14658,69166.0,69163.0,0.028]
[1722090316426,0.146578,69167.0,69163.0,0.028]
[1722090316625,0.146578,69167.0,69163.0,0.014]
[1722090316848,0.02269057,69168.0,69163.0,0.014]
[1722090316849,0.16926557,69168.0,69163.0,0.014]
[1722090317009,0.290148,69169.0,69163.0,0.014]
[1722090317010,0.001,69169.0,69163.0,0.014]
[1722090317214,0.289142,69171.0,69162.0,0.289175]
[1722090317215,0.002,69171.0,69162.0,0.289175]
[1722090317461,0.144572,69170.0,69163.0,0.144585]
[1722090317664,0.145574,69169.0,69166.0,0.014]
[1722090317821,0.147574,69169.0,69166.0,0.014]
[1722090318164,0.291126,69174.0,69160.0,0.48390244]
[1722090318370,0.001,69169.0,69166.0,0.014]
[1722090318599,0.001,69169.0,69168.0,0.144575]
[1722090318801,0.001,69169.0,69162.0,0.001]
[1722090318802,0.144559,69176.0,69167.0,0.289153]
[1722090319005,0.0804,69177.0,69168.0,0.28915]
[1722090319205,0.0804,69177.0,69166.0,0.005]
[1722090319407,0.0804,69177.0,69171.0,0.144568]
[1722090319812,0.0804,69177.0,69170.0,0.289141]
[1722090319813,0.0804,69177.0,69170.0,0.43371]
[1722090320009,0.0804,69177.0,69170.0,0.144569]
[1722090320321,0.0804,69177.0,69165.0,0.320862]
[1722090320540,0.289062,69190.0,69165.0,0.320862]
[1722090320541,0.02269049,69175.0,69174.0,0.433687]
[1722090320719,0.0804,69184.0,69177.0,0.144555]
[1722090320922,0.0804,69184.0,69176.0,0.144558]
[1722090321173,0.0804,69184.0,69171.0,0.2113]
[1722090321174,0.144544,69183.0,69175.0,0.2899842]
[1722090321381,0.0804,69184.0,69176.0,0.023]
[1722090321527,0.0804,69184.0,69178.0,0.144553]
[1722090322134,0.0804,69184.0,69177.0,0.144556]
[1722090322340,0.0804,69184.0,69177.0,0.289111]
[1722090322548,0.0804,69184.0,69179.0,0.144552]
[1722090322729,0.0804,69184.0,69178.0,0.144553]
[1722090322929,0.0804,69184.0,69179.0,0.144551]
[1722090323130,0.0804,69184.0,69179.0,0.289104]
[1722090323330,0.0804,69184.0,69180.0,0.289098]
[1722090323535,0.0804,69184.0,69177.0,0.289112]
[1722090323734,0.0804,69184.0,69179.0,0.144551]
[1722090323933,0.0804,69184.0,69178.0,0.002]
[1722090323934,0.02268735,69183.0,69178.0,0.146554]
[1722090324336,0.02268735,69183.0,69178.0,0.144554]
[1722090324691,0.02268735,69183.0,69180.0,0.004]
[1722090325142,0.02268735,69183.0,69176.0,0.023]
[1722090325331,0.02268735,69183.0,69177.0,0.144556]
[1722090325530,0.02268735,69183.0,69178.0,0.005]
[1722090325754,0.16723135,69183.0,69178.0,0.005]
[1722090325882,0.16723135,69183.0,69176.0,0.144558]
[1722090326077,0.02268735,69183.0,69180.0,0.005]
[1722090326307,0.435644,69181.0,69180.0,0.005]
[1722090326659,0.724762,69179.0,69178.0,0.005]
[1722090326879,0.788462,69179.0,69178.0,0.01]
[1722090327074,1.077567,69179.0,69178.0,0.01]
[1722090327275,1.155367,69179.0,69178.0,0.01]
[1722090328151,0.289131,69173.0,69170.0,0.00928388]
[1722090328351,0.144569,69171.0,69165.0,0.4748]
[1722090328668,0.144569,69171.0,69168.0,0.01010118]
[1722090328840,0.144569,69171.0,69168.0,0.000924]
[1722090329702,0.1415,69169.0,69168.0,0.000924]
[1722090329900,0.1435,69169.0,69168.0,0.000924]
[1722090330130,0.1435,69169.0,69168.0,0.002924]
[1722090330471,0.1415,69182.0,69168.0,0.12308376]
[1722090330682,0.1415,69182.0,69173.0,0.144564]
[1722090330683,0.14455,69181.0,69173.0,0.144564]
[1722090330883,0.1415,69182.0,69168.0,0.002924]
[1722090331083,0.1415,69182.0,69173.0,0.289127]
[1722090331442,0.0637,69186.0,69181.0,0.144547]
[1722090331648,0.02268855,69180.0,69178.0,0.289106]
[1722090331791,0.02268855,69180.0,69179.0,0.26468748]
[1722090331994,0.0637,69186.0,69179.0,0.12013548]
[1722090332187,0.28908,69185.0,69180.0,0.12013548]
[1722090332385,0.144546,69182.0,69175.0,0.144559]
[1722090332615,0.144546,69182.0,69176.0,0.1201398]
[1722090332807,0.144546,69182.0,69177.0,0.1201398]
[1722090333012,0.144549,69181.0,69178.0,0.1201398]
[1722090333231,0.144548,69182.0,69179.0,0.1201398]
[1722090333433,0.144549,69181.0,69180.0,0.1201398]
[1722090334251,0.144549,69181.0,69175.0,0.14456]
[1722090334480,0.144546,69182.0,69176.0,0.12013991]
[1722090334699,0.144549,69181.0,69177.0,0.12013991]
[1722090334889,0.144552,69179.0,69178.0,0.11813991]
[1722090335091,0.002,69176.0,69170.0,0.48385226]
[1722090335291,0.144562,69175.0,69170.0,0.48385226]
[1722090335720,0.291119,69176.0,69170.0,0.48385226]
[1722090335921,0.02268906,69174.0,69170.0,0.48385226]
[1722090336386,0.144563,69174.0,69170.0,0.01305226]
[1722090336550,0.002,69175.0,69170.0,0.02005226]
[1722090337059,0.144571,69170.0,69168.0,0.000924]
[1722090337263,0.001,69174.0,69168.0,0.290073]
[1722090337462,0.145563,69174.0,69168.0,0.01013906]
[1722090337723,0.145563,69174.0,69168.0,0.000924]
[1722090337906,0.001,69174.0,69169.0,0.144572]
[1722090338110,0.145563,69174.0,69168.0,0.000924]
[1722090338318,0.144565,69173.0,69168.0,0.000924]
[1722090338544,0.001,69174.0,69168.0,0.000924]
[1722090338750,0.28912,69176.0,69168.0,0.000924]
[1722090338883,0.144568,69172.0,69170.0,0.007]
[1722090339225,0.144568,69172.0,69170.0,0.006]
[1722090339373,0.144568,69172.0,69168.0,0.000924]
[1722090339589,0.144567,69172.0,69168.0,0.005924]
[1722090339807,0.146567,69172.0,69168.0,0.005924]
[1722090340001,0.146567,69172.0,69168.0,0.000924]
[1722090340241,0.16925743,69172.0,69170.0,0.004]
[1722090340611,0.16925743,69172.0,69168.0,0.002924]
[1722090340810,0.02269043,69172.0,69168.0,0.002924]
[1722090341251,0.02269043,69172.0,69171.0,0.144569]
[1722090341660,0.144555,69178.0,69171.0,0.144569]
[1722090341867,0.0657,69179.0,69168.0,0.290073]
[1722090342071,0.210252,69179.0,69172.0,0.144566]
[1722090342246,0.144554,69178.0,69171.0,0.144568]
[1722090342450,0.210253,69179.0,69172.0,0.144566]
[1722090342616,0.0637,69179.0,69174.0,0.144562]
[1722090342818,0.0637,69179.0,69173.0,0.289128]
[1722090343024,0.0637,69179.0,69170.0,0.289138]
[1722090343025,0.0687,69179.0,69172.0,0.144565]
[1722090343225,0.144555,69178.0,69173.0,0.12015007]
[1722090343505,0.0687,69179.0,69168.0,0.000924]
[1722090343787,0.0778,69180.0,69170.0,0.28914]
[1722090344077,0.02268929,69178.0,69177.0,0.144556]
[1722090344666,0.02268929,69178.0,69175.0,0.14456]
[1722090345046,0.02268929,69178.0,69171.0,0.023]
[1722090345255,0.02268929,69178.0,69174.0,0.144562]
[1722090345457,0.02268929,69178.0,69177.0,0.144556]
[1722090345859,0.02268929,69178.0,69177.0,0.55381095]
[1722090346101,0.02268929,69178.0,69177.0,0.26469795]
[1722090346313,0.02268929,69178.0,69177.0,0.55381095]
[1722090346516,0.02268929,69178.0,69177.0,0.12014195]
[1722090346717,0.02268929,69178.0,69176.0,0.144558]
[1722090346946,0.02268929,69178.0,69175.0,0.14456]
[1722090347194,0.02268929,69178.0,69177.0,0.004]
[1722090347431,0.02268929,69178.0,69177.0,0.006]
[1722090347589,0.02268929,69178.0,69177.0,0.002]
[1722090348618,0.02268929,69178.0,69174.0,0.00929706]
[1722090348815,0.02268929,69178.0,69175.0,0.14656]
[1722090349432,0.0778,69180.0,69175.0,0.14456]
[1722090349640,0.0778,69180.0,69177.0,0.006]
[1722090349975,0.0778,69180.0,69177.0,0.002]
[1722090350181,0.0778,69180.0,69175.0,0.144559]
[1722090350356,0.0778,69180.0,69175.0,0.004]
[1722090350512,0.0778,69180.0,69175.0,0.002]
[1722090350887,0.0778,69180.0,69178.0,0.144553]
[1722090351059,0.0637,69184.0,69179.0,0.144551]
[1722090351060,0.1409,69184.0,69179.0,0.144551]
[1722090351459,0.1409,69184.0,69175.0,0.291121]
[1722090351460,0.1409,69184.0,69175.0,0.002]
[1722090351620,0.1409,69184.0,69179.0,0.144551]
[1722090351821,0.1429,69184.0,69179.0,0.144551]
[1722090352435,0.02268809,69183.0,69180.0,0.144549]
[1722090352657,0.1429,69184.0,69177.0,0.289112]
[1722090352822,0.1429,69184.0,69179.0,0.144551]
[1722090353017,0.1409,69184.0,69179.0,0.144551]
[1722090353303,0.1429,69184.0,69179.0,0.144551]
[1722090353449,0.1429,69184.0,69178.0,0.289108]
[1722090353450,0.002,69180.0,69178.0,0.001]
[1722090353650,0.1409,69184.0,69178.0,0.001]
[1722090353651,0.0772,69181.0,69178.0,0.001]
[1722090353816,0.002,69174.0,69173.0,0.15355062]
[1722090354227,0.0772,69178.0,69173.0,0.15355062]
[1722090354228,0.002,69176.0,69173.0,0.12913031]
[1722090354427,0.002,69176.0,69173.0,0.15355062]
[1722090355015,0.289091,69183.0,69168.0,0.06580575]
[1722090355016,0.002,69169.0,69168.0,0.000924]
[1722090355217,0.146571,69170.0,69169.0,0.00923002]
[1722090355421,0.002,69170.0,69168.0,0.000924]
[1722090355837,0.144569,69171.0,69168.0,0.000924]
[1722090355838,0.144567,69172.0,69168.0,0.000924]
[1722090356028,0.002,69169.0,69168.0,0.000924]
[1722090356229,0.288873,69169.0,69168.0,0.000924]
[1722090356435,0.288873,69169.0,69168.0,0.01030118]
[1722090356436,0.1443,69169.0,69168.0,0.01030118]
[1722090356584,0.1443,69169.0,69168.0,0.000924]
[1722090356958,0.1443,69169.0,69168.0,0.011924]
[1722090357279,0.1443,69169.0,69168.0,0.008924]
[1722090357484,0.1423,69169.0,69168.0,0.000924]
[1722090357820,0.1423,69169.0,69168.0,0.006924]
[1722090358011,0.1423,69169.0,69168.0,0.013924]
[1722090360164,0.576019,69169.0,69168.0,0.013924]
[1722090360366,0.286873,69169.0,69168.0,0.013924]
[1722090360537,0.576019,69169.0,69168.0,0.013924]
[1722090360741,0.286873,69169.0,69168.0,0.013924]
[1722090361184,0.576019,69169.0,69168.0,0.013924]
[1722090363770,0.286873,69169.0,69168.0,0.013924]
[1722090364133,0.576019,69169.0,69168.0,0.013924]
[1722090365980,0.865165,69169.0,69168.0,0.013924]
[1722090366522,1.154311,69169.0,69168.0,0.013924]
[1722090366712,1.365611,69169.0,69168.0,0.013924]
[1722090367316,1.154311,69169.0,69168.0,0.013924]
[1722090367518,0.865165,69169.0,69168.0,0.013924]
[1722090367718,0.867165,69169.0,69168.0,0.013924]
[1722090368879,1.17900304,69169.0,69168.0,0.013924]
[1722090369099,0.88985704,69169.0,69168.0,0.013924]
[1722090369306,0.867165,69169.0,69168.0,0.013924]
[1722090369512,0.576019,69169.0,69168.0,0.013924]
[1722090371167,0.1423,69169.0,69168.0,0.013924]
[1722090372207,0.0772,69169.0,69168.0,0.013924]
[1722090372402,0.0772,69169.0,69168.0,0.158499]
[1722090372403,0.09989125,69169.0,69168.0,0.158499]
[1722090372604,0.02269125,69169.0,69168.0,0.158499]
[1722090372781,0.1423,69173.0,69168.0,0.158499]
[1722090372980,0.1423,69173.0,69168.0,0.013924]
[1722090373189,0.286865,69173.0,69168.0,0.013924]
[1722090373568,0.286865,69173.0,69168.0,0.007924]
[1722090373980,0.286865,69173.0,69168.0,0.008924]
[1722090374176,0.1423,69173.0,69168.0,0.001924]
[1722090374377,0.289134,69172.0,69168.0,0.001924]
[1722090374601,0.722865,69169.0,69168.0,0.003924]
[1722090374803,0.865165,69169.0,69168.0,0.003924]
[1722090375008,1.154311,69169.0,69168.0,0.003924]
[1722090375400,1.154311,69169.0,69168.0,0.000924]
[1722090375602,1.154311,69169.0,69168.0,0.002924]
[1722090375603,1.156311,69169.0,69168.0,0.002924]
[1722090376203,1.156311,69169.0,69168.0,0.000924]
[1722090376404,1.17900423,69169.0,69168.0,0.002924]
[1722090377039,1.17900423,69169.0,69168.0,0.009924]
[1722090377443,1.17900423,69169.0,69168.0,0.002924]
[1722090377636,1.17900423,69169.0,69168.0,0.006924]
[1722090378056,1.156311,69169.0,69168.0,0.006924]
[1722090380639,0.867165,69169.0,69168.0,0.006924]
[1722090381065,0.88985819,69169.0,69168.0,0.006924]
[1722090381485,0.288873,69169.0,69168.0,0.006924]
[1722090381641,0.286873,69169.0,69168.0,0.006924]
[1722090382128,0.576019,69169.0,69168.0,0.006924]
[1722090383210,0.1423,69169.0,69168.0,0.006924]
[1722090383781,0.286873,69169.0,69168.0,0.006924]
[1722090384167,0.576019,69169.0,69168.0,0.006924]
[1722090384370,0.5987119,69169.0,69168.0,0.006924]
[1722090384814,0.1649929,69169.0,69168.0,0.006924]
[1722090385230,0.3095659,69169.0,69168.0,0.006924]
[1722090385937,0.0986929,69169.0,69168.0,0.729801]
[1722090386156,0.0226929,69169.0,69168.0,0.151499]
[1722090386316,0.0226929,69169.0,69168.0,0.44065]
[1722090386534,0.0226929,69169.0,69168.0,0.006924]
[1722090386741,0.0246929,69169.0,69168.0,0.006924]
[1722090387709,0.0226929,69169.0,69168.0,0.006924]
[1722090393784,0.1692659,69169.0,69168.0,0.006924]
[1722090393959,0.4584119,69169.0,69168.0,0.006924]
[1722090394201,0.8889579,69169.0,69168.0,0.006924]
[1722090394703,0.866265,69169.0,69168.0,0.006924]
[1722090398736,1.155411,69169.0,69168.0,0.006924]
[1722090399314,1.17810358,69169.0,69168.0,0.006924]
[1722090399720,1.155411,69169.0,69168.0,0.006924]
[1722090402427,0.577119,69169.0,69168.0,0.006924]
[1722090402552,0.59981239,69169.0,69168.0,0.006924]
[1722090402756,0.88895839,69169.0,69168.0,0.006924]
[1722090402960,0.866265,69169.0,69168.0,0.006924]
[1722090405645,1.155411,69169.0,69168.0,0.006924]
[1722090406216,1.17810406,69169.0,69168.0,0.006924]
[1722090407187,1.26260406,69169.0,69168.0,0.006924]
[1722090407309,0.146606,69153.0,69152.0,0.060924]
[1722090407511,0.371906,69153.0,69152.0,0.02217772]
[1722090407752,0.661119,69153.0,69152.0,0.02217772]
[1722090408392,0.371906,69153.0,69152.0,0.02217772]
[1722090408808,0.950332,69153.0,69152.0,0.02217772]
[1722090408977,0.661119,69153.0,69152.0,0.02217772]
[1722090409198,0.577619,69153.0,69152.0,0.03217772]
[1722090409982,0.866832,69153.0,69152.0,0.022924]
[1722090410181,0.577619,69153.0,69152.0,0.022924]
[1722090410359,0.866832,69153.0,69152.0,0.034924]
[1722090410560,0.88952844,69153.0,69152.0,0.034924]
[1722090410961,0.60031544,69153.0,69152.0,0.034924]
[1722090411183,0.88952844,69153.0,69152.0,0.034924]
[1722090412410,0.60031544,69153.0,69152.0,0.034924]
[1722090412625,0.88952844,69153.0,69152.0,0.034924]
[1722090412828,0.88752844,69153.0,69152.0,0.034924]
[1722090413060,0.30910244,69153.0,69152.0,0.05275692]
[1722090413258,0.16449644,69153.0,69152.0,0.05275692]
[1722090414012,0.30910244,69153.0,69152.0,0.05275692]
[1722090414463,0.16449644,69153.0,69152.0,0.05275692]
[1722090414660,0.30910244,69153.0,69152.0,0.05275692]
[1722090415101,0.60031544,69153.0,69152.0,0.05275692]
[1722090415221,0.59831544,69153.0,69152.0,0.05275692]
[1722090415636,0.60031544,69153.0,69152.0,0.05275692]
[1722090415839,0.88952844,69153.0,69152.0,0.05275692]
[1722090417256,1.17874144,69153.0,69152.0,0.05275692]
[1722090417452,1.17874144,69153.0,69152.0,0.04275692]
[1722090417453,1.17774144,69153.0,69152.0,0.04275692]
[1722090417848,1.17774144,69153.0,69152.0,0.04668092]
[1722090418349,1.444258,69153.0,69152.0,0.04668092]
[1722090418516,1.444258,69153.0,69152.0,0.04368092]
[1722090418782,0.434034,69119.0,69118.0,0.04335816]
[1722090418940,0.434034,69119.0,69111.0,0.10839542]
[1722090418941,0.435971,69129.0,69128.0,0.45077872]
[1722090419174,0.435971,69129.0,69110.0,0.54879125]
[1722090419175,0.002,69120.0,69111.0,0.0015542]
[1722090419397,0.2113,69132.0,69116.0,0.06910284]
[1722090419398,0.075,69119.0,69116.0,0.06910284]
[1722090419546,0.210481,69118.0,69116.0,0.05995233]
[1722090419748,0.0658,69118.0,69116.0,0.05995233]
[1722090419948,0.35516,69118.0,69116.0,0.05995233]
[1722090420184,0.0658,69118.0,69116.0,0.05995233]
[1722090420383,0.72541,69117.0,69116.0,0.05995233]
[1722090420636,0.002,69111.0,69110.0,0.008954]
[1722090420767,0.866272,69111.0,69110.0,0.008954]
[1722090420966,0.2113,69117.0,69110.0,0.008954]
[1722090420967,0.075,69117.0,69110.0,0.008954]
[1722090421248,0.219683,69117.0,69110.0,0.008954]
[1722090421466,0.144686,69115.0,69110.0,0.008954]
[1722090421658,0.002,69116.0,69110.0,0.008954]
[1722090421659,0.146694,69111.0,69110.0,0.008954]
[1722090421806,0.144694,69111.0,69110.0,0.008954]
[1722090421996,0.001,69111.0,69110.0,0.014954]
[1722090422539,0.02271278,69116.0,69110.0,0.008954]